[Event "5th Cesme Open 2017"]
[Site "Cesme"]
[Date "2017.06.18"]
[Round "9.11"]
[White "Rahmanov, Shahriyar"]
[Black "Bilyap, Enis"]
[Result "1-0"]
[ECO "A46"]
[WhiteElo "2353"]
[BlackElo "2017"]
[Annotator "NA"]
[PlyCount "55"]
[EventType "swiss"]
[EventCountry "TUR"]
[SourceTitle "playchess.com"]
[Source "ChessBase"]
[SourceQuality "1"]
[TimeControl "5400+30"]

{[%evp 8,49,28,33,33,21,54,43,57,2,29,27,31,24,25,20,42,-2,16,0,11,-1,16,14,24,0,25,22,17,14,16,22,29,32767,32767,32767,32767,32767,32767,32767,32767,32767,32767,399]} 1. Nf3 {[%emt 0:00:30]} d6 {[%emt 0:01:00]} 2. d4 {[%emt 0:00:30]} Bg4 {[%emt 0:00:30]} 3. Nbd2 {[%emt 0:02:30]} Nf6 {[%emt 0:04:00] ]]%]c} 4. h3 {[%emt 0:12:00] ]]%]c} Bxf3 {[%emt 0:05:30] ]]%]c} 5. Nxf3 {[%emt 0:05:30] ]]%]c} e6 {[%emt 0:07:30] ]]%]c} 6. Qd3 {[%emt 0:12:30] ]]]cc} c6 {[%emt 0:05:30] ]]]]c} 7. e4 {[%emt 0:02:30] ]]]]c} d5 {[%emt 0:06:30] ]]]]c} 8. Nd2 {[%emt 0:17:30] [%clk 0:44]8]115} Be7 {[%emt 0:17:30] % [%clk 0:48:0]15} 9. Be2 {[%emt 0:08:30] %%} dxe4 {[%emt 0:06:30] ]%} 10. Nxe4 {[%emt 0:00:30] ]%} Nbd7 {[%emt 0:03:30] ]%} 11. O-O {[%emt 0:01:30] ]%} O-O {[%emt 0:01:30] ]%} 12. Ng3 {[%emt 0:02:30] [%clk 0:33] ]115} c5 {[%emt 0:07:30] % [%clk 0:31:0]115} 13. dxc5 {[%emt 0:13:30] %} Nxc5 {[%emt 0:01:30] ]%} 14. Qf3 {[%emt 0:00:00] ]%} Qb6 {[%emt 0:10:31] cclk} 15. Rb1 {[%emt 0:01:00] 9]} Rac8 {[%emt 0:06:36] [%clk 0:12.29] ][} 16. Be3 {[%emt 0:07:16] [[ll} Qc6 {[%emt 0:01:37] [[[l} 17. Qxc6 {[%emt 0:01:07] [[[l} Rxc6 {[%emt 0:00:22] [ [%clk 0:12:43] [} 18. Bf3 {[%emt 0:05:56] [[[} Rc7 {[%emt 0:00:54] [%clk 0:11.35] ]} 19. Rfd1 {[%emt 0:01:50] [%} b6 {[%emt 0:01:03] [} 20. Bf4 {[%emt 0:02:06] ]} Rcc8 {[%emt 0:05:19] ]} 21. Ne2 {[%emt 0:00:43]} Rfd8 {[%emt 0:01:48] ]} 22. Nd4 {[%emt 0:00:02] ]} Nd5 {[%emt 0:01:31] ]} 23. Bg3 {[%emt 0:00:17] [%clk 0:05.00] ]} Bf6 {[%emt 0:04:09] %} 24. Nb5 {[%emt 0:00:13] [%clk 0:06.07]} Be7 {[%emt 0:01:29]} 25. Nxa7 $18 {[%emt 0:00:00]} Ra8 {[%emt 0:00:30]} 26. Nc6 {[%emt 0:00:00]} Re8 {[%emt 0:00:30]} 27. Nxe7+ {[%emt 0:00:23]} Rxe7 {[%emt 0:00:30]} 28. c4 {[%emt 0:00:30]} 1-0

[Event "5th Cesme Open 2017"]
[Site "Cesme"]
[Date "2017.06.18"]
[Round "9.14"]
[White "Bashirli, Nail"]
[Black "Yildiz, Emre"]
[Result "1/2-1/2"]
[ECO "B86"]
[WhiteElo "2345"]
[BlackElo "1998"]
[Annotator "NA"]
[PlyCount "114"]
[EventType "swiss"]
[EventCountry "TUR"]
[SourceTitle "playchess.com"]
[Source "ChessBase"]
[SourceQuality "1"]
[TimeControl "5400+30"]

{[%evp 22,112,3,-47,-54,-54,-49,-60,-31,-35,-61,-49,234,-8,88,31,44,47,29,25,33,44,28,23,30,41,50,25,38,25,37,16,22,6,8,0,53,-172,-173,-170,-175,-175,-122,-147,69,52,76,42,71,-189,-85,-92,32767,-199,-191,-236,32767,32767,32767,32767,32767,32767,32767,32767,32767,32767,32767,32767,32767,32767,32767,32767,32767,32767,32767,32767,32767,32767,32767,32767,32767,32767,32767,32767,32767,32767,32767,32767,0,32767,32767,0,0]} 1. e4 c5 2. Nf3 d6 3. d4 cxd4 4. Nxd4 Nf6 5. Nc3 a6 6. Bc4 e6 7. Bb3 Nbd7 {[%emt 0:02:00]} 8. Bg5 {[%emt 0:08:00]} Nc5 {[%emt 0:00:30]} 9. O-O {[%emt 0:00:30]} Be7 {[%emt 0:00:30] B86: Sicilian Scheveningen/Najdorf: 6 Bc4, without early ...b5} 10. Re1 {[%emt 0:00:30]} O-O {[%emt 0:00:30]} (10... h6 11. Bh4 Nxb3 12. axb3 g5 13. Bg3 e5 14. Nf5 Nxe4 15. Nxd6+ Qxd6 16. Nxe4 Qxd1 17. Rexd1 {½-½ (43) Grandelius,N (2635)-Vachier Lagrave,M (2785) Gibraltar 2016}) 11. f4 {[%emt 0:10:30] 3.][%clk} Qb6 {[%emt 1:34:28] 3.][%lk} 12. Kh1 $146 {[%emt 0:03:30] 3.][%%lk} ({Predecessor:} 12. e5 dxe5 13. fxe5 Nxb3 14. axb3 Rd8 15. Ra4 Bc5 16. Be3 Nd5 17. Bf2 {0-1 (35) Fell,S (2117)-Hungaski,R (2399) Argentina 2007}) 12... h6 $1 {[%emt 0:00:00] 3.][%%lk} 13. Bxf6 $1 {[%emt 0:00:30] 3.][%ll} Bxf6 {[%emt 0:00:00] 3.[[[%l} 14. e5 {[%emt 0:00:30] 3..[[%l} dxe5 {[%emt 0:00:00] 3..[%%} 15. fxe5 {[%emt 0:00:30] 3..[[%} Bh4 {[%emt 0:00:00] 3...[%} 16. Rf1 $1 {[%emt 0:00:30] 33..%%} Rd8 $2 {[%emt 0:00:00] 33...% [#]} (16... Qc7 $15 {keeps the upper hand.}) 17. Qg4 $2 {[%emt 0:00:30] 33...%} ({White must play} 17. Qh5 $1 $18 Rxd4 18. Rxf7) 17... Bf2 {[%emt 0:00:00] 333..%} (17... Bg5 $11 {keeps the balance.}) 18. Rxf2 {[%emt 0:01:30] 333...} Nxb3 {[%emt 0:00:00] 333... [#]} 19. axb3 $2 {[%emt 0:00:00] 333...} (19. Rxf7 $1 $18 Kxf7 20. Nxb3) 19... Qxd4 {[%emt 0:00:00] ]33...} 20. Qf3 {[%emt 0:06:00] ]333..} Qxe5 {[%emt 0:00:00] ]]33..} 21. Qxf7+ {[%emt 0:00:30] ]]33..} Kh7 {[%emt 0:00:00] ]]]3..} 22. Re2 {[%emt 0:00:30] ]]]3.} Qd4 {[%emt 0:00:00] ]]]].} (22... Qf6 $5 {[%cal Rf6f7]} 23. Qc7 b5 $14) 23. h3 {[%emt 0:01:30] ]]]].} b5 {[%emt 0:00:00] ]]]]} 24. Qf3 {[%emt 0:03:30] [%clk 1:12]31]9} Ra7 {[%emt 0:00:00] %%%lk} 25. Rd1 {[%emt 0:01:30] [%clk 0:31] ]]9} Qb6 {[%emt 0:00:00] [%clk 0:32]31] [%clk 0:00:50] [%l} 26. Rde1 {[%emt 0:00:30] %[clk [%clk 0:31:0] kk} Rc7 {[%emt 0:00:00] %[clk [%clk 0:00:50] 000} 27. Ne4 {[%emt 0:02:30] %[cl [%clk 0:31:0] 550} Bb7 {[%emt 0:00:00] [%clk 0:00.50] ]55} 28. Qg4 {[%emt 0:02:30] [%clk 0:31] 00]} b4 {[%emt 0:00:00] k [%clk 0:20:0] 8]c [%clk 0:00:50] ::3} 29. Ng5+ $2 {[%emt 0:03:30] ]] [%clk 0:31:0] ]]8} (29. Qh4 $14 {stays ahead.} Re8 30. Ng5+ Kg8 31. Nxe6) 29... hxg5 {[%emt 0:00:00] ]] [%clk 0:00:50] ]]c} 30. Rxe6 {[%emt 0:00:30] ] [%clk 1:03:0] 0]8 [%clk 0:31:0] 0.5 [#]} Bc6 $1 {[%emt 0:00:00] cll [%clk 0:00:50]cl} 31. Qxg5 {[%emt 0:01:30] 33 [%clk 0:31:0] :.. [#]} Qf2 {[%emt 0:00:00] cc [%clk 0:00:50]]c} (31... Rf8 $1 $19 32. Kh2 Kg8) 32. R1e2 {[%emt 0:08:30] 22 [%clk 0:31:0] 055 [#]} Rd1+ $2 {[%emt 0:08:10] ccc [%clk 0:00:50]} (32... Qf8 $1 $17 33. Kh2 (33. Qg3 Rcc8 $17) 33... Rdc8) 33. Kh2 {[%emt 0:00:30] 2]c [%clk 0:31:0] 05.} Qf7 {[%emt 0:00:44] c [%clk 0:00:50] ]} ({Wrong is} 33... Qg1+ $2 34. Kg3 $18) 34. Qh4+ $1 {[%emt 0:12:30] ]] [%clk 0:31:0] 055} Kg8 {[%emt 0:00:30] c [%clk 0:04:02] [%clk 0:00.50]]} 35. R6e3 $2 {[%emt 0:03:30] 3 [%clk 0:31] 044} (35. Qc4 $1 $14 {was forced to keep a grip.}) 35... Bb5 {[%emt 0:02:28] [%clk 0:00.50] 2[} (35... Rb7 $19 {is more deadly.} 36. Re5 Qc7) 36. Rf2 {[%emt 0:02:30] 0 [%clk 0:31:0] 55]} Qg6 {[%emt 0:00:13] [%clk 0:01.57] 2 [%clk 0:00:50]]]} 37. Rg3 {[%emt 0:02:30] ] [%clk 0:31:0] 75} (37. Qxb4 $17 Rf7 38. Ref3 Rxf3 39. Rxf3) 37... Qd6 {[%emt 0:00:40] c [%clk 0:00:50] [%c} 38. Rf4 {[%emt 0:05:30] ]7} Qc5 {[%emt 0:01:27] [c[} ({Not} 38... Rxc2 {[#]} 39. Rxg7+ $3 {[%mdl 512]} Kxg7 40. Qg5+ Kh7 41. Qh5+ Kg8 42. Qg5+ Kh8 43. Qh5+ Kg8 44. Qg5+ Kh8 45. Qh5+ Kg8 $11) 39. Rgf3 {[%emt 0:00:30] 5]} Qg1+ {[%emt 0:00:30]} 40. Kg3 {[%emt 0:00:30] ]]} Qe1+ {[%emt 0:00:30]} 41. Rf2 {[%emt 0:00:30] 00} Qe5 {[%emt 0:00:30]} 42. Kh2 {[%emt 0:00:30] 5]]} Rd4 {[%emt 0:00:28] ]} 43. Qg3 {[%emt 0:00:30] ]]} Rxf4 {[%emt 0:00:29] ]} 44. Rxf4 {[%emt 0:00:00] 3]]} Qe7 {[%emt 0:00:46] ]} 45. c4 {[%emt 0:00:00] 7]]} bxc3 {[%emt 0:00:07] ]} 46. bxc3 {[%emt 0:00:30] 00]} Bc6 {[%emt 0:00:31]} 47. Qd3 {[%emt 0:00:30] 99} Bb7 {[%emt 0:00:12] [%clk 0:01.15] 0} 48. b4 {[%emt 0:00:30] ]]} Qg5 {[%emt 0:00:32] c%} 49. Rg4 {[%emt 0:00:30] 1]} Qe5+ {[%emt 0:00:30] c} 50. Kg1 {[%emt 0:00:30] ]5 5 [%clk 0:33:0]} Qe1+ {[%emt 0:00:30]} (50... Qxc3 $17 51. Qd8+ Kf7 52. Rf4+ Ke6 53. Qe8+ Re7 54. Qg6+ Kd7 55. Qg4+ Kd6 56. Rd4+ Bd5 57. Qg6+ Re6 58. Qxg7 Qe3+ 59. Kh2 Qe5+ 60. Qxe5+ Kxe5) 51. Kh2 {[%emt 0:00:30] 5} Qe5+ {[%emt 0:00:30]} 52. Kg1 {[%emt 0:00:30] 5 [%clk 0:33:0] 1} Rxc3 {[%emt 0:00:59] l} 53. Qd8+ {[%emt 0:00:00] 4} Kf7 {[%emt 0:00:30]} 54. Qd7+ {[%emt 0:00:00] ]} Kg8 {[%emt 0:00:32]} 55. Qd8+ {[%emt 0:00:30] 4} Kf7 {[%emt 0:00:00]} 56. Qd7+ {[%emt 0:01:30] 4} Kg8 {[%emt 0:00:01]} 57. Qd8+ {[%emt 0:02:30] 3} Kf7 {[%emt 0:00:02] [%clk 0:02.11]} 1/2-1/2

[Event "5th Cesme Open 2017"]
[Site "Cesme"]
[Date "2017.06.18"]
[Round "9.15"]
[White "Ozen, Bahadir"]
[Black "Kerem, Halil Ozgun"]
[Result "1/2-1/2"]
[ECO "A00"]
[WhiteElo "2332"]
[BlackElo "2050"]
[Annotator "ChessBase"]
[PlyCount "74"]
[EventType "swiss"]
[EventCountry "TUR"]
[SourceTitle "playchess.com"]
[Source "ChessBase"]
[SourceQuality "1"]
[TimeControl "5400+30"]

1. g3 e5 2. Bg2 Nc6 3. d3 Bc5 4. Nf3 d6 5. O-O Nge7 {[%emt 0:08:00] ]5]]} 6. c3 {[%emt 0:09:00] ]5]} O-O {[%emt 0:03:30] ]5]} 7. d4 {[%emt 0:07:30] ]5]} Bb6 {[%emt 0:00:30] ]5]} 8. dxe5 {[%emt 0:02:30] ]5]} Nxe5 {[%emt 0:10:30] ]5]} 9. Nxe5 {[%emt 0:02:30] ]5]} dxe5 {[%emt 0:02:30] ]5} 10. Na3 {[%emt 0:04:30] ]]} Qxd1 {[%emt 0:07:30] ]]} 11. Rxd1 {[%emt 0:00:00] ]]} c6 {[%emt 0:00:30] ]]]} 12. Nc4 {[%emt 0:02:00] ]]]} Bc7 {[%emt 0:00:30] ]]]} 13. b3 {[%emt 0:01:30] ]]]} f6 {[%emt 0:19:30] ]]]} 14. Ba3 {[%emt 0:00:30] ]]]} Kf7 {[%emt 0:00:00] ]]]} 15. Nd6+ {[%emt 0:01:30] ]]]} Bxd6 {[%emt 0:00:00] ]]]} 16. Rxd6 {[%emt 0:01:30] ]]} Re8 {[%emt 0:01:30] ]]]} 17. e4 {[%emt 0:02:30] ]]]} a5 {[%emt 0:02:30] [%clk 0:42]0} 18. Rad1 {[%emt 0:07:30] [%ll} a4 {[%emt 0:01:30] [ [%clk 0:41:0]2} 19. Bc5 {[%emt 0:02:30] [} axb3 {[%emt 0:02:30] [} 20. axb3 {[%emt 0:00:30] ][} Be6 {[%emt 0:01:30] ]} 21. c4 {[%emt 0:07:30] ]]} Ra2 {[%emt 0:01:30] [%clk 0:37] ]2} 22. Bf1 {[%emt 0:07:30] %c} Bg4 {[%emt 0:01:30] %%} 23. R1d2 {[%emt 0:00:30] % [%clk 0:40:0]} Rxd2 {[%emt 0:02:30] [} 24. Rxd2 {[%emt 0:00:30]} Ra8 {[%emt 0:00:30]} 25. Kg2 {[%emt 0:00:30]} Ng6 {[%emt 0:02:30]} 26. h3 {[%emt 0:01:30]} Be6 {[%emt 0:00:30]} 27. Be2 {[%emt 0:00:30]} Ke8 {[%emt 0:03:30]} 28. Bh5 {[%emt 0:02:30]} Ra6 {[%emt 0:07:30]} 29. Rd6 {[%emt 0:01:30]} Bd7 {[%emt 0:00:30]} 30. Rd2 {[%emt 0:05:30]} b6 {[%emt 0:00:30]} 31. Be3 {[%emt 0:00:30]} Ke7 {[%emt 0:00:30]} 32. b4 {[%emt 0:00:30]} Nf8 {[%emt 0:01:30]} 33. Be2 {[%emt 0:00:30]} Ne6 {[%emt 0:01:30]} 34. b5 {[%emt 0:03:30]} cxb5 {[%emt 0:00:00]} 35. cxb5 {[%emt 0:00:30]} Ra7 {[%emt 0:00:00] [%clk 0:21]} 36. Bxb6 {[%emt 0:08:30]} Rb7 {[%emt 0:00:30]} 37. Be3 {[%emt 0:00:30]} Bxb5 {[%emt 0:00:00]} 1/2-1/2

[Event "5th Cesme Open 2017"]
[Site "Cesme"]
[Date "2017.06.18"]
[Round "9.16"]
[White "Kilic, Efe Mert"]
[Black "Nalbant, Tuna Onat"]
[Result "1-0"]
[ECO "B26"]
[WhiteElo "2331"]
[BlackElo "1993"]
[Annotator "NA"]
[PlyCount "89"]
[EventType "swiss"]
[EventCountry "TUR"]
[SourceTitle "playchess.com"]
[Source "ChessBase"]
[SourceQuality "1"]
[TimeControl "5400+30"]

{[%evp 14,82,14,9,32767,-21,18,-50,-18,-56,-47,-51,-40,-32,-34,-93,-66,-61,-57,-78,-39,-54,-47,-45,-33,-112,-146,-161,-162,-297,-164,-183,-115,-154,-138,-222,-125,-132,-122,-136,-49,-53,79,0,0,32767,32767,32767,72,32767,32767,32767,32767,32767,32767,32767,32767,32767,32767,89,32767,32767,65,58,32767,32767,139,32767,32767,356,377]} 1. e4 c5 2. Nc3 d6 {[%emt 0:00:30] ][%c ][%cl} 3. g3 {[%emt 0:10:30] ][%c ][%cl} Nc6 {[%emt 0:00:30] ][% ][%l} 4. Bg2 {[%emt 0:00:30] ][%% ][%%l} g6 {[%emt 0:00:30] ][%% ][%%l} 5. d3 {[%emt 0:00:30] ][%%} Bg7 {[%emt 0:00:30] ][% ][%%} 6. Be3 {[%emt 0:00:30] ][[ ][[%} e6 {[%emt 0:00:30] ][[ ][[%} 7. Qd2 {[%emt 0:00:00] ][[ ][[%} Rb8 {[%emt 0:00:30] ][[[} 8. Nge2 {[%emt 0:00:00] ][[[ LiveBook: 125 Games} Nd4 {[%emt 0:00:30] ][[[} 9. Nc1 {[%emt 0:01:30] ][[ ][[[} e5 $146 {[%emt 0:04:30] ]][ B26: Closed Sicilian: 3 g3, lines with early Be3 ]][[} ({Predecessor:} 9... Ne7 10. Nd1 O-O 11. c3 Ndc6 12. h4 Ne5 13. Bh6 Bxh6 14. Qxh6 f6 15. d4 cxd4 16. cxd4 Nf7 17. Qd2 {½-½ (56) Tischbierek,R (2454)-Fruebing,S (2381) Germany 2016}) 10. h3 {[%emt 0:02:30] ]][} ({White should play} 10. Nd5 $11) 10... b5 {[%emt 0:05:30] ]] ]]]} 11. Nd1 {[%emt 0:03:30] ]]]} Bb7 {[%emt 0:04:30] ]]]} 12. c3 {[%emt 0:01:30] ]]]} Ne6 {[%emt 0:00:30] ]]]} 13. O-O {[%emt 0:07:30] ]]]} Ne7 {[%emt 0:03:30] ]]]} 14. Bh6 {[%emt 0:01:30] ]]] ]]]]} O-O {[%emt 0:01:30] ]]]]} 15. Bxg7 {[%emt 0:03:30] ]]]]} Kxg7 {[%emt 0:04:30] ]]]] ]]]]]} 16. f4 {[%emt 0:03:30] ]]]] ]]]]]} exf4 {[%emt 0:04:30] ]]]]} 17. gxf4 {[%emt 0:00:00] ]]]] ]]]]]} f5 {[%emt 0:00:30] ]]]] ]]]]]} 18. Ne2 {[%emt 0:01:00] ]]]]} d5 {[%emt 0:13:30] ]]]] ]]]]]} 19. e5 {[%emt 0:05:30] [%clk 0:56]4]cc [%clk 0:56]4]ccl} ({Better is} 19. exf5 $1 $15 Nxf5 20. Ne3) 19... d4 {[%emt 0:05:30] c%ckkk c%ckkk:} 20. Bxb7 {[%emt 0:03:30] ]c% ]c%%} Rxb7 {[%emt 0:00:00] ]c% ]c%%} 21. Rf3 {[%emt 0:02:30] [%clk 0:51]44] [#] [%clk 0:51]44]l} (21. Rc1 $142) 21... Qd5 {[%emt 0:05:00] %c%cl %c%clk} (21... g5 $142 $1 {[%mdl 512]} 22. cxd4 (22. fxg5 Ng6) 22... cxd4) 22. Rg3 {[%emt 0:01:30] ]%c%ll ]%c%llk} Rd8 {[%emt 0:01:30] ]%%cl ]%%cll} 23. Nf2 {[%emt 0:00:00] ]%%%l ]%%%ll} Nc6 {[%emt 0:06:30] [%clk 0:37]]4c [%clk 0:37]]4c]} 24. Qc2 {[%emt 0:08:00] % [%clk 0:43:0]4 % [%clk 0:43:0]4]} (24. Kh2 $17) 24... c4 {[%emt 0:11:30] ]%[ ]%[[} 25. Rd1 {[%emt 0:09:30] ]%%} Rbd7 {[%emt 0:06:30] [%clk 0:17.58] 0kk [%clk 0:17.58] 0kk0} 26. h4 {[%emt 0:16:03] lk} cxd3 {[%emt 0:04:49] lk} ({Black should try} 26... dxc3 $17 27. bxc3 b4 28. dxc4 Qxc4 29. Rxd7+ Rxd7 30. Qxf5 Rf7) 27. Qxd3 {[%emt 0:01:45] [%clk 0:17.12] 2 [%clk 0:16:28]2 [%clk 0:17.12] 2 [%clk 0:16:28]22} a6 {[%emt 0:05:46] %% %%c} (27... Kh8 $15) 28. h5 {[%emt 0:01:06] %% %%c} (28. Qxf5 $1 $16 Rf8 29. Qg4) 28... Kf7 {[%emt 0:05:49]} 29. hxg6+ {[%emt 0:16:13]} hxg6 {[%emt 0:00:32]} 30. Rh3 {[%emt 0:00:00]} Rg8 {[%emt 0:02:04] [%clk 0:03.30] [%clk 0:00:34] [%clk 0:03.30] [%clk 0:01:26] ]} (30... Qc4 $11 {keeps the balance.}) 31. b3 {[%emt 0:00:00] %} Rdd8 {[%emt 0:03:26] %} 32. Qg3 {[%emt 0:00:00] %} Qc5 {[%emt 0:00:30] %} 33. Rh7+ {[%emt 0:00:00] % [%clk 0:06:05]} Rg7 {[%emt 0:00:30]} 34. Qh4 {[%emt 0:00:00]} Qe7 {[%emt 0:00:30]} 35. Rxg7+ {[%emt 0:00:00]} Kxg7 {[%emt 0:00:30]} 36. Qxe7+ $1 {[%emt 0:00:00]} Nxe7 {[%emt 0:00:30]} 37. Nxd4 {[%emt 0:00:00]} Nxd4 {[%emt 0:00:30]} 38. Rxd4 {[%emt 0:00:01]} Rc8 {[%emt 0:00:30]} 39. Rd3 {[%emt 0:00:30]} Rc7 {[%emt 0:00:30]} (39... Rc5 $142) 40. Nh3 {[%emt 0:00:30]} Nc6 {[%emt 0:00:30]} 41. Ng5 $18 {[%emt 0:00:30]} Kg8 {[%emt 0:00:30]} 42. Rd6 {[%emt 0:00:30]} Na5 {[%emt 0:00:30]} 43. Rxg6+ {[%emt 0:00:30]} Kh8 {[%emt 0:00:30]} 44. Rxa6 {[%emt 0:00:00]} Nb7 {[%emt 0:00:01]} 45. Ra8+ {[%emt 0:00:00]} 1-0